bitfinex-derivatives/quotes_BTCF0:USTF0_20240903
["timestamp","ask_amount","ask_price","bid_price","bid_amount"]
[1725391754252,1.98181011,58094.0,58090.0,0.08585588]
[1725391754253,0.344372,58091.0,58090.0,0.08585588]
[1725391754459,0.444772,58091.0,58090.0,0.08585588]
[1725391755450,0.494772,58091.0,58090.0,0.08585588]
[1725391755652,0.444772,58091.0,58090.0,0.08585588]
[1725391756450,0.494772,58091.0,58090.0,0.08585588]
[1725391756751,0.444772,58091.0,58090.0,0.08585588]
[1725391757052,0.358679,58091.0,58090.0,0.08585588]
[1725391757638,0.258679,58091.0,58090.0,0.08585588]
[1725391757954,0.468679,58091.0,58090.0,0.08585588]
[1725391758356,0.172204,58085.0,58084.0,0.004]
[1725391758647,0.172204,58085.0,58082.0,0.05141673]
[1725391758648,0.17221,58083.0,58082.0,0.05141673]
[1725391758852,0.18140513,58083.0,58082.0,0.05141673]
[1725391759051,0.086106,58082.0,58081.0,0.4608]
[1725391759255,0.086506,58082.0,58081.0,0.4608]
[1725391759554,0.086506,58082.0,58081.0,0.3608]
[1725391759555,0.28101334,58082.0,58081.0,0.3608]
[1725391761555,0.28101334,58082.0,58081.0,0.41219051]
[1725391762558,0.28101334,58082.0,58081.0,0.41218261]
[1725391762946,0.28101334,58082.0,58081.0,0.05138261]
[1725391764360,0.086115,58076.0,58075.0,0.1]
[1725391764654,0.086515,58076.0,58075.0,0.1]
[1725391764857,0.272632,58076.0,58073.0,0.3608]
[1725391765150,0.172254,58068.0,58067.0,0.004]
[1725391765353,0.172256,58067.0,58066.0,0.01138213]
[1725391765661,0.172256,58067.0,58062.0,0.447936]
[1725391765662,0.086128,58067.0,58062.0,0.447936]
[1725391765854,0.1004,58063.0,58062.0,0.446936]
[1725391766854,0.086534,58063.0,58062.0,0.546936]
[1725391768055,0.086534,58063.0,58062.0,0.55850735]
[1725391772266,0.172668,58063.0,58062.0,0.37237135]
[1725391772454,0.258429,58057.0,58056.0,0.004]
[1725391772659,0.258438,58055.0,58048.0,0.07253734]
[1725391773353,0.172292,58055.0,58048.0,0.07253734]
[1725391773960,0.172292,58055.0,58048.0,0.17253734]
[1725391774159,0.172292,58055.0,58050.0,0.1]
[1725391774367,0.086146,58055.0,58054.0,0.15141385]
[1725391774958,0.086146,58055.0,58054.0,0.1]
[1725391775466,0.086149,58053.0,58052.0,0.3608]
[1725391775665,0.086149,58053.0,58052.0,0.4608]
[1725391775666,0.086549,58053.0,58052.0,0.4608]
[1725391776256,0.086549,58053.0,58052.0,0.6008]
[1725391776661,0.086549,58053.0,58052.0,0.3608]
[1725391777771,0.172698,58053.0,58052.0,0.3608]
[1725391778371,0.172698,58053.0,58052.0,0.6008]
[1725391780677,0.172698,58053.0,58052.0,0.3608]
[1725391781267,0.172698,58053.0,58052.0,0.24]
[1725391781767,0.172698,58053.0,58052.0,0.6008]
[1725391781970,0.086549,58053.0,58052.0,0.686951]
[1725391783974,0.0004,58053.0,58052.0,0.773102]
[1725391784280,0.0004,58053.0,58052.0,0.686951]
[1725391785483,0.086549,58053.0,58052.0,0.686951]
[1725391786774,0.086549,58053.0,58052.0,0.446951]
[1725391786976,0.086549,58053.0,58052.0,0.686951]
[1725391788290,0.086549,58053.0,58045.0,0.004]
[1725391788291,0.2404,58053.0,58045.0,0.004]
[1725391788502,0.2404,58053.0,58042.0,0.0491]
[1725391788503,0.086164,58043.0,58042.0,0.0491]
[1725391788786,0.0004,58046.0,58042.0,0.30073823]
[1725391788787,0.086161,58045.0,58042.0,0.30073823]
[1725391788991,0.086161,58045.0,58044.0,0.24]
[1725391789292,0.086161,58045.0,58044.0,0.2404]
[1725391789789,0.086161,58045.0,58044.0,0.326561]
[1725391791288,0.086161,58045.0,58044.0,0.2404]
[1725391791486,0.172322,58045.0,58044.0,0.0004]
[1725391792387,0.258483,58045.0,58044.0,0.0004]
[1725391795588,0.17234,58039.0,58038.0,0.05151146]
[1725391795792,0.17274,58039.0,58038.0,0.24]
[1725391799592,0.086174,58036.0,58035.0,0.6008]
[1725391799902,0.086574,58036.0,58035.0,0.6008]
[1725391800400,0.0004,58036.0,58035.0,0.686976]
[1725391800592,0.0004,58036.0,58035.0,1.803896]
[1725391800792,0.0004,58036.0,58035.0,1.203896]
[1725391801696,0.00025835,58041.0,58040.0,0.086169]
[1725391801895,0.00025835,58041.0,58040.0,1.376587]
[1725391802102,0.004,58055.0,58054.0,0.172296]
[1725391802397,0.0004,58057.0,58056.0,0.086145]
[1725391802605,0.0004,58057.0,58056.0,0.603265]
[1725391802793,0.0004,58057.0,58056.0,1.203265]
[1725391802992,0.0004,58068.0,58056.0,1.11712]
[1725391803194,0.0004,58068.0,58067.0,0.6012]
[1725391803400,0.00065835,58068.0,58067.0,0.6012]
[1725391803598,0.00065835,58068.0,58067.0,0.687328]
[1725391803802,0.08612,58073.0,58068.0,0.086126]
[1725391804105,0.0004,58074.0,58072.0,0.6012]
[1725391804401,0.00028,58074.0,58073.0,0.08652]
[1725391804793,0.086398,58074.0,58073.0,0.0004]
[1725391805498,0.086118,58074.0,58073.0,0.0004]
[1725391806098,0.086118,58074.0,58073.0,0.3612]
[1725391806493,0.086113,58078.0,58073.0,0.447319]
[1725391806699,0.086113,58078.0,58077.0,0.0004]
[1725391807406,0.00025835,58079.0,58077.0,0.0004]
[1725391807703,0.00025835,58079.0,58078.0,0.0004]
[1725391808802,0.08636935,58079.0,58078.0,0.0004]
[1725391810504,1.00636935,58079.0,58078.0,0.0004]
[1725391812701,0.17248035,58079.0,58078.0,0.0004]
[1725391813098,0.61939135,58079.0,58078.0,0.0004]
[1725391813299,1.53939135,58079.0,58078.0,0.0004]
[1725391813698,0.17225,58069.0,58064.0,0.3608]
[1725391813902,0.17265,58069.0,58068.0,0.00025835]
[1725391814513,0.086525,58069.0,58068.0,0.00025835]
[1725391815805,0.0004,58069.0,58068.0,0.00025835]
[1725391816315,0.0004,58069.0,58068.0,0.08638535]
[1725391818912,0.0004,58069.0,58068.0,0.17251235]
[1725391819109,0.0004,58069.0,58068.0,1.28915235]
[1725391819320,0.00025835,58079.0,58078.0,0.086112]
[1725391819623,0.00017835,58079.0,58078.0,1.048112]
[1725391821114,0.01146151,58086.0,58085.0,0.326102]
[1725391821414,0.086099,58087.0,58086.0,0.0861]
[1725391821618,0.086099,58087.0,58086.0,0.0865]
[1725391823124,0.172198,58087.0,58086.0,0.0004]
[1725391825311,0.258297,58087.0,58086.0,0.0004]
[1725391825515,1.374777,58087.0,58086.0,1e-06]
[1725391825915,2.500876,58087.0,58086.0,1e-06]
[1725391826417,0.258318,58082.0,58081.0,3.5e-07]
[1725391826619,0.258318,58082.0,58059.0,0.0087]
[1725391826620,0.817306,58082.0,58072.0,3.5e-07]
[1725391826825,0.2404,58073.0,58072.0,3.5e-07]
[1725391827119,1.41876,58073.0,58072.0,3.5e-07]
[1725391828826,1.42756733,58073.0,58072.0,3.5e-07]
[1725391830519,1.41876,58073.0,58072.0,3.5e-07]
[1725391830824,1.43076,58073.0,58072.0,0.00100035]
[1725391831119,0.09852,58073.0,58072.0,0.24100035]
[1725391832211,0.09852,58073.0,58072.0,0.32712135]
[1725391833222,0.33852,58073.0,58072.0,0.00100035]
[1725391833813,0.42464,58073.0,58072.0,0.00100035]
[1725391834523,0.4246,58073.0,58072.0,0.00100035]
[1725391835615,0.42424,58073.0,58072.0,0.00100035]
[1725391836311,0.51918922,58073.0,58072.0,0.00100035]
[1725391836622,0.43306922,58073.0,58072.0,0.00100035]
[1725391837011,1.35306922,58073.0,58072.0,0.00100035]
[1725391837212,1.34424,58073.0,58072.0,0.00100035]
[1725391838916,1.43036,58073.0,58072.0,0.00100035]
[1725391839542,1.43881203,58073.0,58072.0,0.00100035]
[1725391840030,1.5416824,58073.0,58072.0,0.00100035]
[1725391840517,1.4916824,58073.0,58072.0,0.00100035]
[1725391840717,1.5416824,58073.0,58072.0,0.00100035]
[1725391841119,1.6278024,58073.0,58072.0,3.5e-07]
[1725391841315,1.5416824,58073.0,58072.0,3.5e-07]
[1725391843023,1.6278024,58073.0,58072.0,3.5e-07]
[1725391843528,1.5416824,58073.0,58072.0,3.5e-07]
[1725391844519,1.6278024,58073.0,58072.0,3.5e-07]
[1725391844715,0.344508,58068.0,58067.0,7e-07]
[1725391844921,0.344508,58068.0,58053.0,0.004]
[1725391844922,0.258444,58054.0,58053.0,0.004]
[1725391845129,0.086149,58053.0,58048.0,0.3608]
[1725391845333,0.17271,58049.0,58048.0,0.3608]
[1725391845523,0.17231,58049.0,58048.0,0.3608]
[1725391845716,1.7176,58049.0,58044.0,0.00096]
[1725391846025,1.7176,58049.0,58033.0,0.0046]
[1725391846026,0.086174,58036.0,58035.0,0.06852997]
[1725391846215,0.086574,58036.0,58035.0,0.42932997]
[1725391846419,0.074574,58036.0,58035.0,0.42932997]
[1725391846920,0.068574,58036.0,58035.0,0.42932997]
[1725391847621,0.069574,58036.0,58035.0,0.44132997]
[1725391849532,0.069574,58036.0,58035.0,0.44096997]
[1725391850026,0.08084393,58036.0,58035.0,0.08016997]
[1725391850527,0.16701793,58036.0,58035.0,0.08016997]
[1725391852228,0.25319193,58036.0,58035.0,0.08016997]
[1725391852425,1.37011193,58036.0,58035.0,9.7e-07]
[1725391852625,0.17239,58022.0,58021.0,3.5e-07]
[1725391852838,0.859785,58022.0,58021.0,3.5e-07]
[1725391853343,1.976825,58022.0,58021.0,3.5e-07]
[1725391853540,1.376825,58022.0,58021.0,3.5e-07]
[1725391854037,1.69359,58022.0,58021.0,3.5e-07]
[1725391855336,1.2812,58022.0,58020.0,0.24]
[1725391855634,0.0004,58021.0,58020.0,0.24]
[1725391855931,0.36105835,58027.0,58020.0,0.24]
[1725391855932,0.00025835,58027.0,58026.0,0.086189]
[1725391856136,0.00025835,58027.0,58026.0,0.687389]
[1725391856535,0.00025835,58027.0,58026.0,0.447389]
[1725391857128,0.00025835,58027.0,58026.0,0.086589]
[1725391858239,0.00025835,58027.0,58026.0,0.326589]
[1725391858439,0.00025835,58027.0,58026.0,1.491289]
[1725391858739,0.00025835,58027.0,58026.0,0.891289]
[1725391859128,0.04305999,58034.0,58030.0,0.086183]
[1725391859332,0.04305999,58034.0,58033.0,0.0004]
[1725391860333,0.04305999,58034.0,58033.0,0.086579]
[1725391861137,0.04305999,58034.0,58033.0,0.0004]
[1725391863045,0.12923799,58034.0,58033.0,0.0004]
[1725391863640,0.04305999,58034.0,58033.0,0.0004]
[1725391866840,0.37923799,58034.0,58033.0,0.0004]
[1725391867148,0.46541599,58034.0,58033.0,0.0004]
[1725391867337,1.58237599,58034.0,58033.0,0.0004]
[1725391867747,1.66855399,58034.0,58033.0,1e-06]
[1725391867947,1.71505399,58034.0,58033.0,1e-06]
[1725391869034,0.258555,58029.0,58028.0,0.00025835]
[1725391869247,0.859755,58029.0,58028.0,0.00025835]
[1725391869545,0.909755,58029.0,58028.0,0.00025835]
[1725391869944,0.859755,58029.0,58028.0,0.00025835]
[1725391870436,0.959755,58029.0,58028.0,0.00025835]
[1725391870642,0.086206,58015.0,58014.0,0.086207]
[1725391870837,0.086207,58014.0,58013.0,0.40838]
[1725391871040,0.086607,58014.0,58013.0,0.4075]
[1725391871240,0.086207,58014.0,58013.0,0.4075]
[1725391871443,0.086207,58014.0,58013.0,0.3608]
[1725391872242,0.086207,58014.0,58008.0,0.546876]
[1725391872446,0.0004,58009.0,58008.0,0.425116]
[1725391873040,0.0004,58009.0,58005.0,0.37132]
[1725391873251,0.326619,58006.0,58005.0,0.0451]
[1725391873449,0.2404,58006.0,58005.0,0.0451]
[1725391873647,0.326619,58006.0,58005.0,0.0451]
[1725391874638,0.412838,58006.0,58005.0,0.0451]
[1725391875548,0.326619,58006.0,58005.0,0.0451]
[1725391877449,0.33806352,58006.0,58005.0,0.0451]
[1725391878556,0.086223,58003.0,58002.0,0.086225]
[1725391878752,0.25184452,58006.0,58002.0,0.2176215]
[1725391879058,0.0004,58003.0,58002.0,0.2176215]
[1725391879553,0.086623,58003.0,58002.0,0.2174618]
[1725391879948,0.086623,58003.0,58002.0,0.21746197]
[1725391880744,0.0004,58003.0,58002.0,0.61739246]
[1725391880946,0.0004,58003.0,58002.0,1.73459246]
[1725391882345,0.412846,58003.0,58002.0,0.13139697]
[1725391882750,0.0004,58003.0,58002.0,0.21762197]
[1725391883856,0.0004,58003.0,58002.0,0.30384697]
[1725391884247,0.0004,58003.0,58002.0,0.21762197]
[1725391884749,0.0004,58003.0,58002.0,0.086225]
[1725391885054,0.0004,58003.0,58002.0,0.21761097]
[1725391885651,0.086237,57994.0,57993.0,0.090238]
[1725391885857,0.086234,57996.0,57992.0,0.12012813]
[1725391886155,0.0004,57993.0,57992.0,0.20636713]
[1725391887852,0.086638,57993.0,57992.0,0.20636713]
[1725391888246,0.086638,57993.0,57992.0,0.12012813]
[1725391890159,0.086238,57993.0,57992.0,0.1314178]
[1725391891253,0.36184001,57998.0,57994.0,0.086237]
[1725391891453,0.086235,57995.0,57994.0,0.086237]
[1725391894059,0.172476,57993.0,57992.0,0.1314178]
[1725391894253,0.17248,57992.0,57991.0,0.10292415]
[1725391894455,0.086249,57986.0,57985.0,0.3608]
[1725391894754,0.086249,57986.0,57985.0,0.44705]
[1725391894949,0.086249,57986.0,57985.0,0.57848476]
[1725391895561,0.08624,57992.0,57987.0,0.086246]
[1725391895757,0.08624,57992.0,57991.0,0.08585774]
[1725391896058,0.08624,57992.0,57991.0,0.08625774]
[1725391896259,0.08624,57992.0,57991.0,0.2404]
[1725391896457,0.08624,57992.0,57991.0,0.37182405]
[1725391896959,0.08624,57992.0,57991.0,0.13182405]
[1725391897657,0.09753647,57992.0,57991.0,0.13182405]
[1725391897964,0.09753647,57992.0,57991.0,0.21806505]
[1725391898359,0.09753647,57992.0,57983.0,0.086253]
[1725391898360,0.172522,57978.0,57970.0,0.0046]
[1725391898554,0.172522,57978.0,57973.0,0.12937385]
[1725391898555,0.172534,57974.0,57973.0,0.12937385]
[1725391898757,0.18107996,57974.0,57973.0,0.12937385]
[1725391899168,0.086277,57967.0,57966.0,0.06295872]
[1725391899467,0.687077,57967.0,57966.0,0.06295872]
[1725391900061,0.086277,57967.0,57966.0,0.06295872]
[1725391900466,0.326277,57967.0,57966.0,0.06295872]
[1725391904872,0.24,57972.0,57966.0,0.06295872]
[1725391905072,0.3608,57970.0,57966.0,0.06295872]
[1725391905272,0.326277,57967.0,57966.0,0.06295872]
[1725391905459,0.412554,57967.0,57966.0,0.06295872]
[1725391907169,0.498831,57967.0,57966.0,7.2e-07]
[1725391907470,1.616391,57967.0,57966.0,7.2e-07]
[1725391908077,1.716391,57967.0,57966.0,7.2e-07]
[1725391908268,1.776391,57967.0,57966.0,7.2e-07]
[1725391908469,1.836391,57967.0,57966.0,7.2e-07]
[1725391908778,1.84792653,57967.0,57966.0,7.2e-07]
[1725391909282,0.086296,57954.0,57953.0,0.08583851]
[1725391909585,1.054694,57954.0,57953.0,0.08583851]
[1725391909769,1.054694,57954.0,57953.0,0.08575851]
[1725391909969,0.086302,57950.0,57944.0,0.326311]
[1725391910170,0.969198,57954.0,57944.0,0.326311]
[1725391910171,0.086304,57949.0,57944.0,0.326311]
[1725391910482,0.0008,57945.0,57944.0,0.086311]
[1725391910868,0.0008,57945.0,57944.0,0.604031]
[1725391911272,0.0008,57945.0,57944.0,1.204031]
[1725391911567,0.728398,57954.0,57944.0,1.35772]
[1725391911768,0.728398,57954.0,57953.0,0.086298]
[1725391912782,0.814694,57954.0,57953.0,0.086298]
[1725391914082,0.728398,57954.0,57953.0,0.086298]
[1725391916878,0.728398,57954.0,57944.0,0.0008]
[1725391916879,0.728398,57954.0,57948.0,0.068402]
[1725391917086,0.728398,57954.0,57944.0,0.0008]
[1725391917087,0.3608,57949.0,57946.0,0.308402]
[1725391917290,0.0863,57952.0,57950.0,0.086302]
[1725391917580,0.086301,57951.0,57950.0,0.086302]
[1725391919083,0.086301,57951.0,57950.0,0.154704]
[1725391919382,0.006798,57954.0,57953.0,0.172596]
[1725391919684,0.006798,57954.0,57953.0,1.23079076]
[1725391919870,0.006798,57954.0,57953.0,1.74843076]
[1725391920070,0.0002588,57959.0,57953.0,1.74843076]
[1725391920071,0.0002588,57959.0,57958.0,0.08629]
[1725391920275,0.0002588,57959.0,57958.0,0.77338]
[1725391920477,0.0002588,57959.0,57958.0,2.0224649]
[1725391920880,0.45855587,57974.0,57973.0,0.086268]
[1725391921074,0.45855587,57974.0,57973.0,0.24]
[1725391922683,0.3608,57974.0,57973.0,0.326268]
[1725391923776,0.3608,57974.0,57973.0,0.843748]
[1725391924290,0.36072,57974.0,57973.0,0.843748]
[1725391924589,0.0002588,57979.0,57978.0,0.086261]
[1725391925184,0.0002588,57979.0,57978.0,0.087061]
[1725391926281,0.0002588,57979.0,57978.0,0.136161]
[1725391926484,0.0002588,57979.0,57978.0,1.339862]
[1725391926979,0.086239,57993.0,57978.0,1.52814]
[1725391927191,0.3608,57995.0,57994.0,0.086237]
[1725391927890,0.086227,58001.0,57992.0,0.2408]
[1725391928083,0.0002588,58000.0,57992.0,0.0008]
[1725391928391,0.08623,57999.0,57998.0,0.086231]
[1725391928978,0.0002588,58000.0,57999.0,0.086229]
[1725391929184,0.0002588,58000.0,57999.0,0.087029]
[1725391933902,0.0002588,58000.0,57999.0,0.0008]
[1725391933903,0.1727148,58000.0,57999.0,0.0008]
[1725391934197,0.2589428,58000.0,57999.0,0.0008]
[1725391934388,0.3073428,58000.0,57999.0,0.0008]
[1725391934590,0.31867615,58000.0,57999.0,0.0008]
[1725391934783,1.43591615,58000.0,57999.0,0.0008]
[1725391934988,1.87214415,58000.0,57999.0,1e-06]
[1725391935186,1.63214415,58000.0,57999.0,1e-06]
[1725391935390,0.086243,57990.0,57989.0,0.0042588]
[1725391935599,0.186243,57990.0,57989.0,0.0865028]
[1725391936097,0.186243,57990.0,57989.0,0.0002588]
[1725391937892,0.086243,57990.0,57989.0,0.0002588]
[1725391938193,0.186243,57990.0,57989.0,0.0002588]
[1725391938985,0.086243,57990.0,57989.0,0.0865028]
[1725391939400,0.086003,57990.0,57989.0,0.0865028]
[1725391942790,0.11148908,57995.0,57989.0,0.0865028]
[1725391942997,0.3608,57996.0,57993.0,0.326237]
[1725391942998,0.086238,57994.0,57993.0,0.326237]
[1725391943192,0.3608,57996.0,57995.0,0.086235]
[1725391943392,0.3608,57996.0,57995.0,0.086635]
[1725391946297,0.0010578,58000.0,57996.0,0.086234]
[1725391946498,0.086233,57997.0,57996.0,0.086234]
[1725391946698,0.0010578,58000.0,57995.0,0.24]
[1725391946898,0.0010578,58000.0,57999.0,0.326629]
[1725391947707,0.0872858,58000.0,57999.0,0.326629]
[1725391948209,0.0872858,58000.0,57999.0,0.2404]
[1725391948407,0.1735138,58000.0,57999.0,0.0004]
[1725391948597,0.1735138,58000.0,57999.0,0.2404]
[1725391949304,0.0872858,58000.0,57999.0,0.2404]
[1725391949604,0.0872858,58000.0,57999.0,0.326629]
[1725391950604,0.0010578,58000.0,57999.0,0.326629]
[1725391951495,0.0010578,58000.0,57999.0,0.2404]
[1725391952604,0.1735138,58000.0,57999.0,0.2404]
[1725391953801,0.0872858,58000.0,57999.0,0.326629]
[1725391954012,0.0010578,58000.0,57999.0,0.326629]
[1725391956508,0.0010578,58000.0,57999.0,0.45803397]
[1725391957211,0.0010578,58000.0,57999.0,0.21763397]
[1725391957508,0.0010578,58000.0,57999.0,0.45763397]
[1725391959516,0.0852798,58004.0,58003.0,0.326223]
[1725391959704,0.0852798,58004.0,58003.0,0.41223857]
[1725391959899,0.0852798,58004.0,58003.0,0.326223]
[1725391960813,0.0852798,58004.0,58003.0,0.326623]
[1725391961022,0.0852798,58004.0,58003.0,0.2404]
[1725391962311,0.0932798,58004.0,58003.0,0.2414]
[1725391963014,0.0962798,58004.0,58003.0,0.2414]
[1725391965309,0.0962798,58004.0,58003.0,0.2404]
[1725391965515,0.0962798,58004.0,58003.0,0.2414]
[1725391967029,0.0962798,58004.0,58003.0,0.32742133]
[1725391967411,0.0962798,58004.0,58003.0,0.45882018]
[1725391967813,0.0962798,58004.0,58003.0,0.32742133]
[1725391968914,0.0962798,58004.0,58003.0,0.2414]
[1725391969312,0.0961598,58004.0,58003.0,0.2414]
[1725391972031,0.1823828,58004.0,58003.0,0.2414]
[1725391972331,0.1713828,58004.0,58003.0,0.2404]
[1725391972524,0.1823828,58004.0,58003.0,0.2414]
[1725391973127,0.1713828,58004.0,58003.0,0.2404]
[1725391973324,0.1823828,58004.0,58003.0,0.2414]
[1725391973930,0.1823828,58004.0,58003.0,0.37279966]
[1725391974434,0.1823828,58004.0,58003.0,0.2414]
[1725391974940,0.1833828,58004.0,58003.0,0.2414]
[1725391975438,0.1833828,58004.0,58003.0,0.327623]
[1725391976230,0.1823828,58004.0,58003.0,0.327623]
[1725391978033,0.1713828,58004.0,58003.0,0.326623]
[1725391978333,0.1833828,58004.0,58003.0,0.327623]
[1725391978841,0.1713828,58004.0,58003.0,0.326623]
[1725391979142,0.1823828,58004.0,58003.0,0.327623]
[1725391979330,0.1823828,58004.0,58003.0,0.2414]
[1725391979936,0.1823828,58004.0,58003.0,0.327623]
[1725391980627,0.6995828,58004.0,58003.0,0.0014]
[1725391980832,0.6995828,58004.0,58003.0,0.001]
[1725391980833,0.3871598,58004.0,58003.0,0.001]
[1725391981137,1.6968048,58004.0,58003.0,0.001]
[1725391981338,0.2696048,58004.0,58003.0,0.001]
[1725391981533,0.2696048,58004.0,58000.0,0.24]
[1725391981534,0.172452,58001.0,58000.0,0.24]
[1725391981740,0.171452,58001.0,58000.0,0.24]
[1725391982143,0.257678,58001.0,58000.0,0.24]
[1725391982344,0.256678,58001.0,58000.0,0.24]
[1725391984039,0.258693,57998.0,57997.0,0.24]
[1725391984240,0.086238,57993.0,57992.0,0.24]
[1725391984444,0.447038,57993.0,57992.0,0.24]
[1725391984945,0.446038,57993.0,57992.0,0.32624]
[1725391985646,0.458038,57993.0,57992.0,0.32724]
[1725391986345,0.183476,57993.0,57992.0,0.32724]
[1725391987541,0.097238,57993.0,57992.0,0.32724]
[1725391987939,0.094238,57993.0,57992.0,0.32724]
[1725391988448,0.094638,57993.0,57992.0,0.32724]
[1725391988758,0.543676,57993.0,57992.0,0.241]
[1725391989056,1.79852264,57993.0,57992.0,0.001]
[1725391989240,1.75852264,57993.0,57992.0,0.001]
[1725391989439,0.258729,57990.0,57989.0,0.0002588]
[1725391989750,2.016249,57990.0,57989.0,0.0002588]
[1725391989953,1.976249,57990.0,57989.0,0.0002588]
[1725391990253,2.076249,57990.0,57989.0,0.0002588]
[1725391990751,2.176249,57990.0,57989.0,0.0002588]
[1725391991440,2.175249,57990.0,57989.0,0.0002588]
[1725391991638,2.195249,57990.0,57989.0,0.0002588]
[1725391992040,2.125249,57990.0,57989.0,0.0002588]
[1725391992248,2.134249,57990.0,57989.0,0.0012588]
[1725391995848,2.220492,57990.0,57989.0,8e-07]
[1725391996655,1.330492,57990.0,57989.0,8e-07]
[1725391996955,1.570492,57990.0,57989.0,8e-07]
[1725391997445,2.170492,57990.0,57989.0,8e-07]
[1725391997749,1.570492,57990.0,57989.0,8e-07]
[1725391997945,0.726929,57990.0,57989.0,8e-07]
[1725391998249,0.540686,57990.0,57989.0,0.2400008]
[1725391999641,0.0094,57990.0,57989.0,0.3262448]
[1725392001039,0.0094,57990.0,57989.0,0.3777366]
[1725392001546,0.37208864,57993.0,57992.0,0.08624]
[1725392001744,0.37208864,57993.0,57992.0,0.32664]
[1725392002855,0.37208864,57993.0,57992.0,0.32764]
[1725392003050,0.38408864,57993.0,57992.0,0.32764]
[1725392003560,0.012,57993.0,57992.0,0.32764]
[1725392007744,0.012,57993.0,57992.0,0.41388]
[1725392008055,0.012,57993.0,57992.0,1.97824]
[1725392008350,0.012,57993.0,57992.0,1.98970069]
[1725392008657,0.004,58004.0,58001.0,0.258678]
[1725392008858,0.004,58014.0,58001.0,1.376718]
[1725392009058,0.08621,58013.0,58001.0,1.977118]
[1725392009755,0.0002588,58007.0,58001.0,1.977118]
[1725392010359,0.0002588,58007.0,58001.0,1.890892]
[1725392010557,0.0002588,58007.0,58001.0,1.891892]
[1725392011957,0.0002588,58007.0,58001.0,1.892892]
[1725392012153,0.0002588,58007.0,58006.0,0.086219]
[1725392012461,0.3608,58018.0,58017.0,0.086203]
[1725392012669,0.447001,58018.0,58017.0,0.326203]
[1725392012961,0.3608,58018.0,58017.0,0.326203]
[1725392013155,0.372109,58018.0,58017.0,0.326203]
[1725392013356,0.3608,58018.0,58017.0,0.326203]
[1725392014161,0.00025857,58023.0,58022.0,0.086195]
[1725392014463,0.01141544,58023.0,58022.0,0.326195]
[1725392015161,0.00025857,58023.0,58022.0,0.326195]
[1725392016862,0.00025857,58023.0,58022.0,0.85576247]
[1725392017765,0.00025857,58023.0,58022.0,0.85476247]
[1725392017955,0.00025857,58023.0,58022.0,0.33772247]
[1725392018566,0.00025857,58023.0,58022.0,0.34172247]
[1725392019760,0.00025857,58023.0,58022.0,0.85876247]
[1725392019967,0.00025857,58023.0,58022.0,0.85756247]
[1725392021354,0.00025857,58023.0,58022.0,0.85656247]
[1725392023867,0.00025857,58023.0,58022.0,0.85556247]
[1725392024766,0.00025857,58023.0,58022.0,0.85656247]
[1725392024961,0.00025857,58023.0,58022.0,0.33952247]
[1725392026262,0.00025857,58023.0,58022.0,0.33852247]
[1725392029361,0.00017857,58023.0,58022.0,0.33852247]
[1725392033366,0.08637257,58023.0,58022.0,0.33852247]
[1725392033565,0.17256657,58023.0,58022.0,0.2408]
[1725392035367,0.53336657,58023.0,58022.0,0.2408]
[1725392035670,0.61956057,58023.0,58022.0,0.0008]
[1725392036572,0.65956057,58023.0,58022.0,0.0008]
[1725392036770,0.61956057,58023.0,58022.0,0.0008]
[1725392036960,0.61956057,58023.0,58022.0,0.0018]
[1725392037273,0.61956057,58023.0,58022.0,0.2418]
[1725392038373,0.61956057,58023.0,58022.0,0.2408]
[1725392038669,0.61956057,58023.0,58022.0,0.2418]
[1725392040168,0.61956057,58023.0,58022.0,0.2408]
[1725392040372,0.61956057,58023.0,58022.0,0.2418]
[1725392040967,0.61956057,58023.0,58022.0,0.2408]
[1725392041169,0.61956057,58023.0,58022.0,0.2418]
[1725392042478,0.61956057,58023.0,58022.0,0.0018]
[1725392043667,0.61956057,58023.0,58022.0,0.2418]
[1725392045769,0.70956057,58023.0,58022.0,0.0018]
[1725392046879,2.15279457,58023.0,58022.0,0.0018]
[1725392047975,0.257627,58013.0,58012.0,0.00425857]
[1725392048174,0.979227,58013.0,58012.0,0.00025857]
[1725392049179,0.806809,58013.0,58012.0,0.24025857]
[1725392049678,0.892018,58013.0,58012.0,0.24025857]
[1725392051687,0.892018,58013.0,58012.0,0.00025857]
[1725392053087,0.90344821,58013.0,58012.0,0.00025857]
[1725392054087,0.81723921,58013.0,58012.0,0.00025857]
[1725392055188,0.90344821,58013.0,58012.0,0.00025857]
[1725392056398,0.81723921,58013.0,58012.0,0.00025857]
[1725392057796,0.81723921,58013.0,58012.0,0.08646857]
[1725392057995,0.81723921,58013.0,58012.0,0.18646857]
[1725392060291,0.45643921,58013.0,58012.0,0.18646857]
[1725392061008,0.45643921,58013.0,58012.0,0.10025857]
[1725392061301,0.54264821,58013.0,58012.0,0.05185811]
[1725392061500,0.63264821,58013.0,58012.0,0.05185811]
[1725392062100,0.71885721,58013.0,58012.0,0.051873]
[1725392062301,1.2447342,58013.0,58012.0,0.00025857]
[1725392062599,0.258657,58006.0,58005.0,0.12041064]
[1725392062798,0.779457,58006.0,58005.0,0.06879621]
[1725392063594,1.896657,58006.0,58005.0,0.06879621]
[1725392063800,0.256675,58002.0,58001.0,0.05161443]
[1725392064004,0.717875,58002.0,58001.0,0.05161443]
[1725392064307,1.955115,58002.0,58001.0,0.05161443]
[1725392065398,1.945115,58002.0,58001.0,0.05761443]
[1725392066103,2.085115,58002.0,58001.0,0.006]
[1725392067696,2.0965342,58002.0,58001.0,0.006]
[1725392069907,1.4965342,58002.0,58001.0,0.006]
[1725392070609,1.4465342,58002.0,58001.0,0.006]
[1725392076513,0.8692942,58002.0,58001.0,0.006]
[1725392076713,0.9792942,58002.0,58001.0,0.006]
[1725392076904,0.9792942,58002.0,58000.0,0.00025857]
[1725392076905,0.258678,58001.0,58000.0,0.00025857]
[1725392077105,0.17248,57992.0,57991.0,0.004]
[1725392077303,0.086243,57991.0,57990.0,0.086242]
[1725392077505,0.172886,57991.0,57990.0,0.086242]
[1725392078010,0.165886,57991.0,57990.0,0.086242]